bitfinex/quotes_ETHUSD_20240722
["timestamp","ask_amount","ask_price","bid_price","bid_amount"]
[1721692486008,2.606,3451.3,3450.9,2.89779]
[1721692486371,2.606,3451.3,3450.8,2.89786]
[1721692486803,2.606,3451.3,3450.7,2.89788]
[1721692488092,2.606,3451.3,3450.8,2.89786]
[1721692488509,2.606,3451.3,3450.7,2.89788]
[1721692489421,1.06659881,3451.2,3450.7,2.89788]
[1721692489637,1.7,3451.3,3450.8,2.89782]
[1721692490616,1.7,3451.3,3450.5,2.89809]
[1721692491117,1.7,3451.3,3450.4,2.4623]
[1721692491118,1.7,3451.3,3450.9,2.89774]
[1721692493021,1.7,3451.3,3450.7,2.89788]
[1721692493219,1.7,3451.3,3450.7,2.8979]
[1721692493420,1.206,3451.2,3450.7,2.8979]
[1721692493730,1.206,3451.2,3450.7,5.79579]
[1721692494729,1.206,3451.2,3450.7,2.89789]
[1721692495092,2.41893588,3451.2,3450.7,2.89789]
[1721692495293,2.41893588,3451.2,3450.8,2.89781]
[1721692496428,1.21293588,3451.1,3450.8,2.89781]
[1721692498434,1.7,3450.9,3450.7,2.89795]
[1721692498635,1.7,3450.9,3450.7,2.8979]
[1721692498935,1.7,3450.9,3450.7,2.89789]
[1721692501308,1.21293588,3450.8,3450.7,2.89789]
[1721692501698,1.21293588,3450.8,3450.6,2.89799]
[1721692502927,1.21293588,3450.8,3450.5,2.89807]
[1721692503138,1.7,3450.5,3449.9,2.89857]
[1721692503445,1.21293588,3450.6,3449.7,5.33484]
[1721692503446,1.7,3450.1,3449.8,2.89869]
[1721692503744,1.7,3450.1,3449.3,2.4361]
[1721692503745,2.91330959,3450.1,3449.6,2.89888]
[1721692503951,1.7,3449.7,3449.3,5.33518]
[1721692504262,1.7,3449.7,3448.9,0.579901]
[1721692504263,1.7,3449.2,3449.0,2.89938]
[1721692504408,1.7,3449.2,3449.0,2.89931]
[1721692504760,1.7,3449.2,3449.1,2.8993]
[1721692504933,1.7,3449.2,3448.8,2.89949]
[1721692505138,1.7,3449.2,3448.9,2.89941]
[1721692505347,1.7,3449.2,3449.1,2.8993]
[1721692505544,1.7,3449.2,3449.0,2.89939]
[1721692506607,1.7,3449.2,3448.5,2.4361]
[1721692506608,2.91330959,3449.2,3448.5,5.33589]
[1721692506841,2.91330959,3449.2,3448.3,2.89995]
[1721692506842,1.7,3448.8,3448.3,2.89995]
[1721692507118,1.51703557,3449.1,3448.2,2.90005]
[1721692507119,1.7,3448.4,3448.2,2.90005]
[1721692507329,1.7,3448.4,3448.0,2.9002]
[1721692508714,1.7,3448.4,3448.1,2.90014]
[1721692510603,1.7,3448.4,3448.3,2.89997]
[1721692510836,1.7,3448.4,3448.1,2.90008]
[1721692513254,1.7,3448.4,3448.2,2.90005]
[1721692513657,1.7,3448.4,3447.6,2.4688]
[1721692513960,1.7,3448.4,3448.0,2.90016]
[1721692514164,1.7,3448.4,3447.9,2.90031]
[1721692514448,1.7,3448.4,3448.1,2.90008]
[1721692515257,1.7,3448.4,3448.2,2.90006]
[1721692515554,7.36,3449.0,3448.7,2.89958]
[1721692515773,7.36,3449.0,3447.7,0.271568]
[1721692516068,7.36,3449.0,3448.9,2.89947]
[1721692516253,1.7,3449.5,3448.3,2.89993]
[1721692516413,7.36,3449.6,3449.5,2.89897]
[1721692517358,7.36,3449.6,3449.3,2.89913]
[1721692517644,7.36,3449.6,3449.4,2.89902]
[1721692517857,7.36,3449.6,3449.5,2.89897]
[1721692519567,7.36,3449.6,3449.5,5.79794]
[1721692520351,7.36,3449.6,3449.5,6.667651]
[1721692520556,9.06,3450.3,3450.0,2.89847]
[1721692520878,9.06,3450.3,3450.1,2.89845]
[1721692520879,1.7,3450.3,3450.1,2.89845]
[1721692521740,1.7,3450.3,3449.9,2.89856]
[1721692522462,1.7,3450.3,3449.7,2.89873]
[1721692522655,1.7,3450.3,3449.9,2.89858]
[1721692522851,1.7,3450.3,3449.7,2.89873]
[1721692523037,1.7,3449.9,3449.3,2.89907]
[1721692523260,1.7,3449.5,3449.1,2.89928]
[1721692523448,1.7,3449.5,3449.0,2.89932]
[1721692523774,1.7,3449.5,3448.4,0.289993]
[1721692523775,1.7,3449.5,3449.2,2.89917]
[1721692524089,1.7,3449.5,3449.4,2.89905]
[1721692524243,1.7,3449.9,3449.7,2.89874]
[1721692524442,1.7,3449.9,3449.6,2.89887]
[1721692524643,1.7,3449.9,3449.8,2.89871]
[1721692525785,1.7,3449.9,3449.5,2.89893]
[1721692526443,2.17,3449.9,3449.2,2.89919]
[1721692526789,2.17,3449.9,3449.5,2.89892]
[1721692526942,2.17,3449.9,3449.3,2.89913]
[1721692527286,2.17,3449.9,3449.4,2.89904]
[1721692527480,2.17,3449.9,3449.5,2.89896]
[1721692527856,1.7,3449.5,3449.3,2.89913]
[1721692528195,1.7,3449.5,3449.4,2.89905]
[1721692528679,4.21330959,3450.2,3449.4,2.89905]
[1721692528680,3.0,3450.2,3449.4,0.579811]
[1721692528981,3.0,3450.2,3449.6,2.89884]
[1721692529185,3.0,3450.2,3449.6,2.89881]
[1721692529186,1.7,3449.9,3449.6,2.89881]
[1721692529548,1.7,3449.9,3449.7,2.89879]
[1721692531584,1.7,3449.9,3449.6,2.89888]
[1721692531893,1.7,3449.9,3449.4,2.89901]
[1721692532812,1.7,3449.9,3449.2,2.89916]
[1721692532813,1.7,3449.5,3449.2,2.89916]
[1721692534896,1.7,3449.5,3449.0,2.89932]
[1721692535098,1.7,3449.5,3449.1,2.89925]
[1721692535270,1.7,3449.5,3449.2,2.8992]
[1721692535687,1.7,3449.5,3449.0,2.89932]
[1721692535897,1.7,3449.5,3449.1,2.89928]
[1721692536495,1.7,3449.5,3449.2,2.89916]
[1721692536901,1.7,3449.5,3449.3,2.89911]
[1721692537100,1.7,3449.5,3449.4,2.89905]
[1721692537604,1.7,3449.5,3449.2,2.89915]
[1721692537960,1.7,3449.5,3449.3,2.89912]
[1721692538403,1.7,3449.5,3449.4,2.89905]
[1721692541195,1.7,3449.5,3449.4,5.7981]
[1721692541716,1.7,3449.5,3449.2,5.79834]
[1721692541870,1.7,3449.5,3449.2,5.79829]
[1721692541871,2.91330959,3449.5,3449.2,5.79829]
[1721692542280,2.91330959,3449.5,3449.2,2.89914]
[1721692542957,1.21330959,3449.4,3449.2,2.89914]
[1721692543576,1.21330959,3449.4,3449.2,5.7983]
[1721692543782,1.21330959,3449.4,3449.2,2.89914]
[1721692543967,2.91330959,3449.5,3449.2,2.89914]
[1721692544161,2.91330959,3449.5,3448.8,2.8995]
[1721692544371,2.91330959,3449.5,3449.4,2.89905]
[1721692544594,2.91330959,3449.5,3449.4,5.7981]
[1721692544799,1.7,3449.5,3449.4,5.7981]
[1721692545795,1.7,3449.5,3449.3,2.89912]
[1721692546006,2.91330959,3449.5,3449.3,2.89912]
[1721692546217,1.21330959,3449.4,3449.3,2.89912]
[1721692546673,2.91330959,3449.5,3449.3,2.89912]
[1721692546862,2.91330959,3449.5,3449.0,2.89935]
[1721692546863,1.21330959,3449.4,3449.2,2.89919]
[1721692547510,1.21330959,3449.3,3449.2,2.89919]
[1721692548028,2.91330959,3449.5,3449.3,2.89913]
[1721692548180,3.21744672,3449.5,3449.3,2.89913]
[1721692548385,1.7,3449.5,3449.1,2.8993]
[1721692548689,1.51866667,3449.4,3449.2,2.89922]
[1721692548876,1.7,3449.5,3449.2,2.89922]
[1721692548877,1.51866667,3449.3,3449.2,2.89922]
[1721692549388,1.7,3449.5,3449.3,2.89912]
[1721692549742,3.21876246,3449.5,3449.4,2.89905]
[1721692549911,1.7,3449.5,3449.4,2.89905]
[1721692550270,3.21875628,3449.5,3449.4,2.89905]
[1721692550463,1.7,3449.5,3449.4,2.89905]
[1721692550687,3.21874596,3449.5,3449.4,2.89905]
[1721692551481,1.7,3449.5,3449.4,2.89905]
[1721692551677,3.21872377,3449.5,3449.4,2.89905]
[1721692552236,1.7,3449.5,3449.4,2.89905]
[1721692553896,1.7,3449.5,3449.2,5.79836]
[1721692554096,1.51899574,3449.3,3449.2,2.89915]
[1721692554292,1.51899574,3449.4,3449.2,2.89915]
[1721692554591,1.51899574,3449.3,3449.1,2.89927]
[1721692554791,1.7,3449.5,3449.1,2.89927]
[1721692554792,1.51929447,3449.2,3449.1,2.89927]
[1721692554970,1.7,3449.1,3448.9,2.89939]
[1721692555172,3.21929447,3449.1,3448.9,2.89939]
[1721692555619,1.51965583,3449.0,3448.9,2.89939]
[1721692556083,1.51965583,3449.0,3448.5,2.89975]
[1721692556284,1.21584265,3448.7,3448.6,2.89967]
[1721692556523,1.7,3449.1,3448.6,2.89967]
[1721692556524,1.51980331,3448.8,3448.6,2.89967]
[1721692556880,1.21605278,3448.7,3448.5,2.89975]
[1721692557112,1.21605278,3448.7,3448.5,2.89976]
[1721692557113,1.51980331,3448.6,3448.5,2.89976]
[1721692557473,1.7,3448.7,3448.5,2.89976]
[1721692558172,1.7,3448.7,3448.3,2.89991]
[1721692558406,1.21626581,3448.4,3448.3,2.89991]
[1721692558625,1.52068193,3448.5,3448.4,2.89989]
[1721692558907,1.52068193,3448.5,3448.4,5.79978]
[1721692559105,1.7,3448.7,3448.6,2.89972]
[1721692560181,1.7,3448.7,3447.7,2.90044]
[1721692560182,1.7,3448.2,3447.7,2.90044]
[1721692560396,1.21679707,3447.8,3447.7,5.80092]
[1721692560624,1.52099633,3447.9,3447.8,2.9004]
[1721692560926,1.52099633,3447.9,3447.8,5.8008]
[1721692561118,3.52576568,3448.2,3448.0,2.90018]
[1721692561320,3.52576568,3448.2,3448.1,2.90014]
[1721692561321,1.7,3448.2,3448.1,2.90014]
[1721692561486,3.52576568,3448.2,3448.1,2.90014]
[1721692561872,1.7,3448.2,3448.1,11.570965]
[1721692562072,1.82576568,3448.7,3448.6,2.89972]
[1721692562315,1.82576568,3448.8,3448.7,2.89964]
[1721692562509,6.83005996,3449.1,3448.7,2.89964]
[1721692562510,1.8247882,3448.9,3448.7,2.89964]
[1721692562674,1.8247882,3448.9,3448.8,2.89955]
[1721692563010,4.7,3449.1,3448.8,2.89955]
[1721692563216,1.82471013,3448.9,3448.8,2.89955]
[1721692563379,1.7,3448.7,3448.4,2.89986]
[1721692563579,1.52042692,3448.5,3448.4,3.4769005]
[1721692563822,1.7,3448.7,3448.5,2.89975]
[1721692564323,1.7,3448.7,3448.6,2.89972]
[1721692564898,1.7,3448.7,3448.4,5.79968]
[1721692565134,3.52452075,3448.7,3448.4,2.89982]
[1721692565289,3.52452075,3448.7,3448.4,2.89984]
[1721692565492,1.7,3448.7,3448.4,2.89984]
[1721692565725,3.52452075,3448.7,3448.4,2.89984]
[1721692565930,3.52452075,3448.7,3448.2,2.89999]
[1721692565931,1.82452075,3448.5,3448.2,2.89999]
[1721692566136,1.7,3448.2,3448.1,2.90011]
[1721692566433,1.7,3448.2,3447.9,2.90025]
[1721692566607,1.7,3448.2,3448.0,2.90018]
[1721692566984,1.7,3448.2,3448.1,2.90014]
[1721692567884,1.7,3448.2,3448.1,2.87956857]
[1721692569788,1.7,3448.2,3447.8,2.90037]
[1721692569990,1.7,3447.8,3447.6,2.9005]
[1721692570188,1.21533287,3447.7,3447.6,2.9005]
[1721692571394,2.91533287,3447.8,3447.7,2.90048]
[1721692572449,1.7,3447.8,3447.7,2.90048]
[1721692572621,2.91533287,3447.8,3447.7,2.90048]
[1721692572818,2.91533287,3447.8,3447.5,2.9006]
[1721692573322,2.91533287,3447.8,3447.6,2.90055]
[1721692573521,1.7,3447.8,3447.6,2.90055]
[1721692574206,1.7,3447.8,3447.7,2.90048]
[1721692574405,1.7,3447.8,3447.7,5.80096]
[1721692574863,1.7,3447.8,3447.7,2.90048]
[1721692575074,2.91533287,3447.8,3447.7,2.90048]
[1721692575375,1.7,3447.8,3447.7,5.80096]
[1721692576833,1.7,3447.8,3447.7,9.808466]
[1721692577075,1.7,3447.8,3447.7,12.177666]
[1721692577233,1.7,3447.8,3447.7,9.277186]
[1721692577428,1.7,3447.8,3447.7,5.80096]
[1721692578587,1.7,3447.8,3447.7,2.90048]
[1721692578733,1.7,3447.8,3447.7,5.80096]
[1721692578933,1.7,3447.8,3447.7,8.70144]
[1721692579241,1.7,3447.8,3447.7,8.29776]
[1721692579465,1.7,3447.8,3447.7,2.90048]
[1721692580504,1.7,3447.8,3447.7,5.80096]
[1721692582368,1.7,3447.8,3447.7,2.90048]
[1721692582786,1.7,3447.8,3447.7,5.80096]
[1721692583486,1.7,3447.8,3447.7,2.90048]
[1721692583683,1.7,3447.8,3447.7,5.80096]
[1721692584007,1.7,3447.8,3447.7,2.90048]
[1721692584211,1.7,3447.8,3447.7,5.80096]
[1721692584916,1.7,3447.8,3447.7,6.671126]
[1721692585919,1.7,3447.8,3447.7,9.571606]
[1721692587085,1.7,3447.8,3447.7,6.671126]
[1721692587495,1.7,3447.8,3447.7,5.80096]
[1721692591018,1.7,3447.8,3447.7,8.70144]
[1721692591228,1.7,3447.8,3447.7,5.80096]
[1721692594527,1.7,3447.8,3447.7,8.70144]
[1721692596318,1.7,3447.8,3447.7,5.80096]
[1721692597328,1.7,3447.8,3447.7,8.70144]
[1721692598157,1.7,3447.8,3447.7,5.80096]
[1721692599554,2.91533287,3447.8,3447.7,5.80096]
[1721692599910,3.21995248,3447.8,3447.7,5.80096]
[1721692600113,1.7,3447.8,3447.7,5.80096]
[1721692601613,1.7,3447.8,3447.7,2.90048]
[1721692601820,2.05261901,3447.8,3447.7,2.90048]
[1721692602047,2.05261901,3447.8,3447.4,2.90067]
[1721692602256,1.82693922,3447.6,3447.4,2.90066]
[1721692602481,1.7,3447.8,3447.5,2.90065]
[1721692602647,3.83055509,3447.8,3447.5,2.90065]
[1721692603414,1.7,3447.8,3447.6,2.90056]
[1721692603651,1.7,3447.8,3447.6,5.80106]
[1721692604353,1.7,3447.8,3447.6,2.9005]
[1721692604561,1.7,3447.8,3447.7,2.90048]
[1721692608261,2.0831674,3447.8,3447.7,2.90048]
[1721692609253,2.0831674,3447.8,3447.5,2.90059]
[1721692609449,1.82724083,3447.6,3447.5,2.90059]
[1721692609823,2.0831674,3447.8,3447.5,2.90059]
[1721692610038,1.8274132,3447.6,3447.5,2.90059]
[1721692611453,1.7,3447.8,3447.6,2.90055]
[1721692611845,1.7,3447.8,3447.6,5.80106]
[1721692612181,1.7,3447.8,3447.6,2.90051]
[1721692612347,1.7,3447.8,3447.6,2.9005]
[1721692613191,1.7,3447.8,3447.6,2.90049]
[1721692613483,1.7,3447.8,3447.7,2.90048]
[1721692614594,1.7,3447.8,3447.2,2.90086]
[1721692614595,1.7,3447.4,3447.2,2.90085]
[1721692614762,1.82773922,3447.3,3447.2,2.90085]
[1721692615480,1.7,3447.4,3447.3,2.90082]
[1721692616185,2.13221651,3447.7,3446.8,2.90119]
[1721692616186,1.7,3447.0,3446.8,2.90119]
[1721692616499,3.52729145,3447.0,3446.8,2.90117]
[1721692617387,3.52729145,3447.0,3446.9,5.8023]
[1721692617595,1.82729145,3447.1,3447.0,5.80214]
[1721692617794,1.82729145,3447.1,3446.4,2.2763]
[1721692617795,1.82729145,3447.3,3447.1,2.90098]
[1721692617954,1.82729145,3447.3,3447.2,5.8018]
[1721692618287,3.52729145,3447.4,3447.3,2.90082]
[1721692618451,6.52729145,3447.4,3447.3,2.90082]
[1721692618652,4.7,3447.4,3447.3,2.90082]
[1721692618851,1.7,3447.4,3447.3,2.90082]
[1721692619471,3.52616146,3447.4,3447.3,2.90082]
[1721692619987,4.7,3447.4,3447.3,2.90082]
[1721692620192,1.7,3447.4,3447.3,2.90082]
[1721692620571,2.38307556,3447.4,3447.0,2.90102]
[1721692620775,2.38307556,3447.4,3447.2,2.9009]
[1721692620776,1.82619648,3447.3,3447.2,2.9009]
[1721692621378,2.38307556,3447.4,3447.2,2.9009]
[1721692621693,1.82608668,3447.3,3447.2,2.9009]
[1721692623072,2.38307556,3447.4,3447.2,2.9009]
[1721692623277,1.8256994,3447.3,3447.2,2.9009]
[1721692623481,1.8256994,3447.3,3447.2,5.8018]
[1721692623813,1.7,3447.4,3447.1,2.90091]
[1721692624104,1.82557977,3447.3,3447.2,2.9009]
[1721692624594,3.52552029,3447.4,3447.2,2.9009]
[1721692624797,0.65255203,3447.3,3447.2,2.9009]
[1721692625151,2.47807232,3447.3,3447.2,2.9009]
[1721692625307,2.47807232,3447.3,3447.0,2.90104]
[1721692625506,2.47807232,3447.3,3446.9,2.90113]
[1721692625507,1.7,3447.0,3446.9,2.90113]
[1721692628250,1.7,3447.0,3446.5,2.90142]
[1721692628431,1.2164623,3446.7,3446.5,2.90142]
[1721692628935,1.52057788,3446.8,3446.5,2.90142]
[1721692628936,1.2164623,3446.6,3446.5,5.80291]
[1721692629300,1.2164623,3446.7,3446.6,5.80282]
[1721692630068,1.52057788,3446.8,3446.7,2.90132]
[1721692630541,1.7,3447.0,3446.7,2.90132]
[1721692630755,1.52020753,3446.8,3446.7,2.90132]
[1721692633609,1.7,3447.0,3446.7,2.90126]
[1721692633820,1.51992263,3446.8,3446.7,2.90126]
[1721692636055,1.51992263,3446.8,3446.7,5.80258]
[1721692636561,1.7,3447.0,3446.9,2.90115]
[1721692637363,1.7,3447.0,3446.9,5.8023]
[1721692637854,3.21985449,3447.0,3446.9,8.0532]
[1721692639516,1.7,3447.0,3446.9,2.90115]
[1721692640163,1.7,3447.0,3446.9,5.8023]
[1721692644722,1.7,3446.5,3445.8,2.3323]
[1721692644924,1.7,3446.5,3446.2,2.9017]
[1721692645123,3.52559486,3446.5,3446.2,2.9017]
[1721692645354,1.82559486,3446.4,3446.3,2.90163]
[1721692645562,3.52559486,3446.5,3446.3,2.90163]
[1721692645860,3.52578969,3446.5,3446.3,2.90163]
[1721692646076,3.52577907,3446.5,3446.3,2.90163]
[1721692646868,1.7,3446.1,3445.6,2.90217]
[1721692647068,1.52162237,3445.8,3445.6,2.90217]
[1721692647361,1.52162237,3445.8,3445.7,2.90216]
[1721692647362,1.52133085,3445.8,3445.7,2.90216]
[1721692648180,1.7,3445.7,3445.5,2.90232]
[1721692648346,1.7,3445.7,3445.4,2.90241]
[1721692648531,1.52076123,3445.5,3445.2,2.90251]
[1721692648724,1.7,3445.7,3445.2,2.90251]
[1721692648725,1.7,3445.7,3445.4,2.9024]
[1721692648923,1.52080271,3445.5,3445.4,2.9024]
[1721692649163,1.52080271,3445.5,3445.2,2.90251]
[1721692649466,1.7,3445.3,3445.2,2.90251]
[1721692649837,1.7,3444.9,3444.7,2.90298]
[1721692650042,1.7,3444.9,3444.5,2.90313]
[1721692650043,1.2162363,3444.8,3444.5,2.90316]
[1721692650241,1.2162363,3444.7,3444.3,2.90332]
[1721692650460,1.2162363,3444.7,3444.3,2.90329]
[1721692651030,4.16429537,3444.9,3444.3,2.90329]
[1721692651031,1.2162363,3444.8,3444.3,2.90329]
[1721692651347,0.944,3444.5,3443.6,2.90389]
[1721692651663,1.7,3444.3,3444.1,2.90346]
[1721692651824,1.7,3444.3,3444.2,2.90343]
[1721692652031,1.7,3444.3,3444.2,5.80686]
[1721692652869,1.7,3444.7,3444.6,2.90309]
[1721692653033,1.99162363,3444.7,3444.6,2.90309]
[1721692653227,1.99162363,3444.7,3443.4,2.4496]
[1721692653228,1.7,3444.7,3444.4,2.90319]
[1721692653669,1.7,3444.7,3444.6,2.90309]
[1721692654051,1.7,3444.7,3444.3,2.90332]
[1721692654250,1.7,3444.0,3443.4,5.35367]
[1721692654489,1.7,3444.0,3443.9,2.90368]
[1721692654688,1.7,3444.0,3443.7,2.90378]
[1721692656491,1.7,3444.0,3443.9,2.90368]
[1721692656865,1.7,3444.0,3443.9,5.80736]
[1721692657286,1.7,3444.0,3443.7,2.90377]
[1721692658056,1.7,3444.0,3443.8,2.90375]
[1721692658259,1.87,3444.0,3443.7,2.90377]
[1721692659056,1.7,3444.0,3443.8,2.9037]
[1721692659258,3.0,3444.6,3442.7,2.2976]
[1721692659259,1.7,3443.6,3442.7,2.2976]
[1721692659584,1.7,3443.6,3443.5,5.80804]
[1721692660871,1.7,3444.1,3443.9,2.90363]
[1721692661074,1.7,3444.1,3444.0,5.8072]
[1721692661674,1.7,3444.1,3444.0,2.9036]
[1721692663597,1.7,3444.2,3444.0,2.9036]
[1721692663899,1.7,3444.2,3444.1,2.90345]
[1721692664492,0.3037613,3445.0,3444.5,2.90317]
[1721692664493,1.7,3444.6,3444.5,2.90317]
[1721692664793,1.7,3445.0,3444.5,2.90317]
[1721692664996,1.7,3444.4,3444.3,2.90331]
[1721692666285,1.7,3443.9,3443.8,2.90376]
[1721692666691,1.7,3443.9,3443.8,5.80752]
[1721692667001,1.7,3443.9,3443.8,2.90376]
[1721692667623,1.7,3443.9,3443.7,2.90379]
[1721692667624,1.7,3443.9,3443.7,2.90384]
[1721692667786,1.87,3443.9,3443.7,2.90384]
[1721692668816,1.7,3443.9,3443.8,2.90376]
[1721692669022,1.7,3443.9,3443.8,5.80752]
[1721692669990,1.7,3444.3,3444.2,2.90343]
[1721692671421,1.7,3444.3,3444.1,2.90351]
[1721692671795,1.7,3444.3,3443.9,2.9036]
[1721692672036,0.17,3444.2,3443.9,2.9036]
[1721692672202,1.7,3443.9,3443.8,5.80748]
[1721692673139,1.7,3444.4,3444.3,2.90334]
[1721692673496,4.61,3444.7,3444.6,2.90309]
[1721692674402,4.61,3444.7,3444.6,5.80618]
[1721692676425,2.91,3444.7,3444.6,2.90309]
[1721692676631,4.61,3444.7,3444.6,2.90309]
[1721692680347,1.7,3444.7,3444.6,5.80618]
[1721692680522,4.7,3445.2,3445.1,2.90267]
[1721692681253,4.7,3445.2,3444.7,2.90295]
[1721692681254,1.7,3444.8,3444.7,2.90295]
[1721692682430,4.7,3445.2,3445.1,2.90267]
[1721692682637,5.906,3445.2,3445.1,2.90267]
[1721692682811,4.7,3445.2,3445.1,2.90267]
[1721692685273,4.7,3445.2,3445.0,2.90275]
[1721692685417,4.7,3445.2,3445.0,2.90268]
[1721692685817,4.7,3445.2,3445.1,2.90267]
[1721692687142,4.7,3445.2,3444.8,2.90286]
[1721692687342,5.906,3445.2,3444.8,2.90286]
[1721692688541,4.7,3445.2,3444.8,2.90285]
[1721692688733,1.7,3445.2,3444.8,5.80571]
[1721692688918,1.7,3445.2,3444.8,2.90285]
[1721692689541,5.9162363,3445.2,3444.8,2.90285]
[1721692689859,4.7,3445.2,3444.8,2.90285]
[1721692690159,0.7431988,3445.1,3444.8,2.90285]
[1721692690341,1.9594351,3445.1,3444.8,2.90285]
[1721692690661,4.2162363,3445.1,3445.0,2.90275]
[1721692690964,3.0,3445.1,3445.0,5.8055]
[1721692691575,5.9162363,3445.2,3445.1,2.90267]
[1721692692346,4.7,3445.2,3445.1,2.90267]
[1721692693229,6.21899117,3445.2,3445.1,2.90267]
[1721692693757,6.22100002,3445.2,3445.1,2.90267]
[1721692694562,4.7,3445.2,3445.1,2.90267]
[1721692694766,10.27,3445.7,3445.2,2.90257]
[1721692694767,1.82520003,3445.6,3445.2,2.90257]
[1721692694966,1.52118671,3445.5,3445.4,2.90242]
[1721692695120,1.7,3446.0,3445.6,5.8045]
[1721692695121,1.52118671,3445.7,3445.6,5.8045]
[1721692695323,1.21675936,3445.7,3445.6,5.8045]
[1721692695521,1.21675936,3445.8,3445.7,5.80432]
[1721692695863,1.52118671,3445.9,3445.8,2.90208]
[1721692696419,4.52118671,3445.9,3445.8,2.90208]
[1721692696661,4.52118671,3445.9,3445.8,5.80416]
[1721692696966,3.0,3445.9,3445.8,5.80416]
[1721692697335,1.7,3446.0,3445.9,5.80398]
[1721692697532,2.91579505,3446.0,3445.9,5.80398]
[1721692697738,1.7,3446.0,3445.9,5.80398]
[1721692698027,1.21579505,3446.2,3446.1,5.80366]
[1721692698360,1.21579505,3446.3,3446.2,5.80348]
[1721692698859,1.7,3446.4,3446.3,5.80332]
[1721692699069,2.9150998,3446.4,3446.3,5.80332]
[1721692700068,3.21817203,3446.4,3446.3,5.80332]
[1721692700377,2.7578172,3446.4,3446.3,5.80332]
[1721692700546,1.7,3446.4,3446.3,5.80332]
[1721692700745,2.91412732,3446.4,3446.3,5.80332]
[1721692701151,2.91415691,3446.4,3446.3,5.80332]
[1721692701673,1.21415691,3446.5,3446.4,5.80314]
[1721692701837,7.36,3446.6,3446.5,5.80298]
[1721692703255,2.91415691,3446.9,3446.8,5.80248]
[1721692703451,1.7,3446.9,3446.8,5.80248]
[1721692704975,4.7,3447.0,3446.9,5.8023]
[1721692706474,1.21415691,3447.3,3447.2,5.8018]
[1721692706698,1.7,3447.3,3447.2,5.8018]
[1721692707000,8.57415691,3447.5,3447.4,5.80146]
[1721692707184,13.76658087,3447.6,3447.4,5.80146]
[1721692707185,1.7,3447.6,3447.5,5.8013]
[1721692707388,1.7,3447.8,3447.6,2.90056]
[1721692707694,1.21415691,3447.9,3447.8,2.9004]
[1721692707695,4.2102747,3447.9,3447.8,2.9004]
[1721692708207,2.99611779,3447.9,3447.8,2.9004]
[1721692708361,5.99611779,3447.9,3447.8,2.9004]
[1721692708565,1.7,3448.0,3447.9,2.90024]
[1721692708807,4.7,3448.0,3447.9,2.90024]
[1721692709286,7.36,3448.2,3448.1,5.80028]
[1721692710714,1.7,3448.3,3448.2,5.80012]
[1721692711077,4.61,3448.5,3448.4,5.79978]
[1721692712367,7.61,3448.5,3448.4,5.79978]
[1721692713213,4.61,3448.5,3448.4,5.79978]
[1721692714809,1.7,3448.5,3448.4,5.79978]
[1721692715602,1.7,3448.5,3447.8,2.3422]
[1721692715799,1.7,3448.5,3447.0,5.90107]
[1721692715800,1.7,3448.1,3447.1,2.90091]
[1721692716025,0.17,3448.5,3447.6,2.90056]
[1721692716026,1.7,3447.7,3447.6,2.90056]
[1721692716939,1.7,3447.7,3447.5,2.90064]
[1721692717608,1.7,3447.7,3447.6,2.90056]
[1721692720401,1.7,3447.7,3447.6,5.80112]
[1721692723332,1.7,3447.7,3447.6,2.90056]
[1721692725854,1.87,3447.7,3447.4,2.90067]
[1721692726156,1.7,3447.3,3447.0,2.90101]
[1721692726364,1.7,3447.3,3447.2,2.9009]
[1721692726847,1.7,3447.3,3447.2,5.8018]
[1721692728173,7.36,3447.8,3447.7,5.80096]
[1721692728327,1.7,3447.9,3447.8,5.8008]
[1721692736279,1.7,3447.9,3447.8,8.7012]
[1721692736576,4.7,3448.3,3448.2,5.80012]
[1721692737079,1.7,3448.3,3448.2,5.80012]
[1721692738508,7.36,3448.4,3448.3,5.79994]
[1721692738663,7.36,3448.4,3448.3,8.69991]
[1721692739776,7.36,3448.4,3448.3,11.59988]
[1721692741802,7.36,3449.0,3448.9,5.79894]
[1721692742098,1.7,3449.2,3449.1,2.8993]
[1721692743904,1.7,3449.2,3448.9,2.89947]
[1721692744221,1.7,3449.2,3448.9,2.8994]
[1721692745278,4.20770048,3449.4,3448.7,2.89957]
[1721692745279,1.7,3448.8,3448.7,2.89957]
[1721692745510,1.7,3448.8,3448.4,2.89986]
[1721692745918,1.7,3448.8,3448.6,2.89971]
[1721692746789,1.7,3448.8,3448.4,2.89986]
[1721692747226,1.7,3448.8,3448.4,2.89983]
[1721692747539,1.7,3448.3,3448.2,3.77007]
[1721692748045,1.7,3448.3,3448.2,6.67013]
[1721692748738,1.7,3448.3,3448.2,3.77007]
[1721692748904,1.7,3448.3,3448.2,2.90003]
[1721692753343,2.90770048,3448.7,3448.6,2.89972]
[1721692753653,1.7,3448.7,3448.6,5.79944]
[1721692754424,2.90770048,3448.7,3448.6,5.79944]
[1721692755356,2.90770048,3448.7,3448.6,2.89972]